bitfinex/quotes_SOLUSD_20240712
["timestamp","ask_amount","ask_price","bid_price","bid_amount"]
[1720749212928,14.48,136.41,136.38,18.3305]
[1720749213345,14.48,136.41,136.37,7.3329]
[1720749213934,14.48,136.41,136.38,7.3324]
[1720749214347,20.9084,136.42,136.38,7.3324]
[1720749214546,6.4284,136.42,136.38,7.3324]
[1720749215129,6.4284,136.42,136.37,18.3322]
[1720749215130,6.4284,136.42,136.37,25.6649]
[1720749216057,16.0279,136.43,136.38,7.3323]
[1720749216528,9.54144025,136.42,136.37,25.6649]
[1720749216843,16.0279,136.43,136.37,25.6649]
[1720749217226,9.54172506,136.42,136.37,25.6649]
[1720749217432,16.0279,136.43,136.37,25.6649]
[1720749218540,22.09,136.46,136.38,45.0]
[1720749218847,9.54048564,136.45,136.38,45.0]
[1720749219142,22.09,136.46,136.38,45.0]
[1720749219363,9.54080423,136.45,136.38,45.0]
[1720749219529,22.09,136.46,136.41,18.3267]
[1720749219730,29.54080411,136.45,136.41,18.3267]
[1720749219930,20.0,136.45,136.41,18.3267]
[1720749221465,16.2833,136.47,136.42,7.3299]
[1720749221662,9.54058697,136.46,136.42,7.3299]
[1720749221855,9.54058697,136.45,136.42,7.3299]
[1720749222072,16.2833,136.47,136.41,25.6573]
[1720749222268,25.88643724,136.46,136.41,25.6573]
[1720749222579,9.54047496,136.45,136.41,25.6573]
[1720749222782,9.54047496,136.46,136.38,45.0]
[1720749222978,9.54047496,136.45,136.41,7.3307]
[1720749223278,14.99668295,136.49,136.42,7.3299]
[1720749223462,14.99668295,136.49,136.43,7.3296]
[1720749223463,48.1468164,136.48,136.43,7.3296]
[1720749223651,25.8868164,136.47,136.44,7.3291]
[1720749223855,9.54050947,136.46,136.44,7.3291]
[1720749224162,36.62884735,136.5,136.43,7.3295]
[1720749224347,25.88881301,136.49,136.44,7.3291]
[1720749224550,25.88881301,136.48,136.43,7.3295]
[1720749224773,9.53992206,136.47,136.43,7.3295]
[1720749224985,58.71884735,136.5,136.43,7.3295]
[1720749225154,25.88913472,136.49,136.43,7.3295]
[1720749225482,47.97913472,136.48,136.42,25.6555]
[1720749225683,9.53982741,136.47,136.42,25.6555]
[1720749225987,22.26,136.48,136.42,25.6555]
[1720749226153,9.53980159,136.47,136.42,25.6555]
[1720749226360,0.17,136.48,136.42,25.6555]
[1720749226662,9.53977577,136.47,136.42,25.6555]
[1720749226880,0.17,136.48,136.43,7.3297]
[1720749227072,9.53980074,136.47,136.43,7.3297]
[1720749227377,0.17,136.48,136.44,7.3291]
[1720749227569,9.53974825,136.47,136.43,7.3296]
[1720749227755,0.17,136.48,136.43,7.3296]
[1720749227956,31.62977492,136.47,136.42,25.6555]
[1720749228158,51.05,136.47,136.41,7.3306]
[1720749228485,22.09,136.44,136.39,18.3288]
[1720749228688,22.09,136.42,136.37,7.3326]
[1720749230379,22.43,136.43,136.39,7.3317]
[1720749230953,44.458,136.45,136.4,7.3313]
[1720749231160,20.17,136.44,136.4,7.3313]
[1720749231462,42.26,136.44,136.4,7.3313]
[1720749231664,42.26,136.44,136.39,7.3317]
[1720749232170,15.498,136.45,136.4,18.3278]
[1720749232483,15.498,136.45,136.4,25.659]
[1720749232972,37.588,136.45,136.39,7.3315]
[1720749233182,0.34,136.44,136.37,18.3315]
[1720749233376,0.17,136.44,136.39,7.3317]
[1720749234769,0.17,136.44,136.4,7.3312]
[1720749235274,15.498,136.45,136.41,7.3307]
[1720749236184,15.498,136.45,136.4,7.3312]
[1720749237283,15.498,136.45,136.41,7.3307]
[1720749237494,15.498,136.45,136.42,7.3302]
[1720749237991,16.409,136.49,136.43,7.3297]
[1720749238294,16.34852517,136.48,136.43,7.3297]
[1720749238480,16.409,136.49,136.43,7.3297]
[1720749238671,38.43854011,136.48,136.43,7.3297]
[1720749238986,22.09,136.48,136.41,18.3261]
[1720749239292,38.43769906,136.47,136.41,25.6565]
[1720749239466,22.09,136.47,136.41,25.6565]
[1720749240290,22.43,136.48,136.41,25.6565]
[1720749240476,51.05,136.46,136.4,7.3313]
[1720749240671,0.17,136.45,136.4,7.3313]
[1720749241686,0.17,136.45,136.38,25.662]
[1720749241873,54.1103994,136.44,136.38,25.662]
[1720749242076,0.17,136.43,136.38,25.662]
[1720749242269,0.34,136.43,136.38,18.3301]
[1720749242471,0.34,136.43,136.38,25.6625]
[1720749243077,0.34,136.43,136.38,18.3301]
[1720749243482,22.09,136.42,136.37,7.3328]
[1720749243693,0.17,136.41,136.37,7.3328]
[1720749244291,0.34,136.41,136.36,7.3334]
[1720749244488,0.34,136.41,136.37,7.3328]
[1720749244875,73.0502,136.44,136.39,7.3315]
[1720749245081,36.51065767,136.43,136.34,10.0]
[1720749245274,20.0,136.43,136.35,45.0]
[1720749245979,20.0,136.43,136.39,25.661]
[1720749246181,42.09,136.43,136.37,7.3328]
[1720749246490,22.09,136.41,136.36,25.6661]
[1720749246871,0.17,136.42,136.36,18.3327]
[1720749247077,42.09,136.43,136.36,18.3327]
[1720749247376,0.34,136.42,136.36,18.3327]
[1720749247577,22.09,136.43,136.39,7.3317]
[1720749247777,50.9602,136.44,136.41,7.3305]
[1720749247778,22.0002,136.44,136.41,7.3305]
[1720749247980,15.6769,136.44,136.41,7.3305]
[1720749248277,37.7669,136.44,136.4,18.3277]
[1720749248600,37.7669,136.44,136.39,7.3315]
[1720749248788,37.7669,136.44,136.37,25.664]
[1720749249091,38.60134958,136.43,136.38,7.3322]
[1720749249292,22.26,136.43,136.38,7.3322]
[1720749249499,22.26,136.43,136.37,18.3315]
[1720749249674,16.50961109,136.42,136.37,18.3315]
[1720749249877,0.17,136.41,136.35,7.3338]
[1720749250076,0.17,136.41,136.36,7.3334]
[1720749251197,0.17,136.41,136.37,7.3329]
[1720749252297,20.34,136.42,136.38,7.3323]
[1720749252487,20.0,136.42,136.38,18.3308]
[1720749253000,20.0,136.43,136.39,7.3317]
[1720749253175,42.09,136.43,136.38,18.3308]
[1720749253381,38.42940663,136.42,136.36,7.333]
[1720749253591,28.5597,136.41,136.36,7.333]
[1720749253770,6.4697,136.41,136.37,7.3329]
[1720749254194,28.5597,136.41,136.36,7.3333]
[1720749255078,6.4697,136.41,136.37,7.3329]
[1720749255400,22.43,136.42,136.38,7.3323]
[1720749255703,20.0,136.43,136.38,7.3323]
[1720749255881,16.34012727,136.42,136.39,18.3291]
[1720749256079,22.1466,136.44,136.39,18.3291]
[1720749257102,22.1466,136.44,136.4,7.3309]
[1720749257989,22.1466,136.44,136.39,25.6608]
[1720749258183,44.2366,136.44,136.39,18.3291]
[1720749258387,16.5129289,136.43,136.39,18.3291]
[1720749258585,44.2366,136.44,136.39,25.6609]
[1720749258807,16.34280838,136.43,136.39,25.6609]
[1720749258981,22.1466,136.44,136.39,25.6609]
[1720749259176,15.6769,136.44,136.4,7.3312]
[1720749259994,15.6769,136.44,136.39,18.3291]
[1720749260195,15.6769,136.44,136.4,7.331]
[1720749261297,15.6769,136.44,136.39,18.3291]
[1720749261484,15.6769,136.44,136.39,25.6608]
[1720749261688,15.6769,136.44,136.4,7.3312]
[1720749262400,15.6769,136.44,136.41,7.3307]
[1720749262614,15.6769,136.44,136.4,7.3312]
[1720749262784,15.6769,136.44,136.41,7.3307]
[1720749263394,22.09,136.46,136.41,7.3307]
[1720749263596,16.34574657,136.45,136.41,7.3307]
[1720749263800,22.09,136.46,136.41,7.3307]
[1720749264021,16.34597389,136.45,136.41,7.3307]
[1720749264186,21.6826,136.47,136.42,7.3301]
[1720749264387,16.34531662,136.46,136.42,7.3301]
[1720749264595,16.34531662,136.45,136.42,7.3301]
[1720749264801,16.34531662,136.46,136.42,7.3301]
[1720749264985,16.34688903,136.45,136.42,7.3301]
[1720749265186,21.6826,136.47,136.42,7.3301]
[1720749265505,16.34720388,136.46,136.42,7.3301]
[1720749265700,16.34720388,136.45,136.41,25.6571]
[1720749265887,43.7726,136.47,136.42,7.3302]
[1720749266199,38.43686699,136.46,136.39,7.3317]
[1720749266505,16.51686699,136.45,136.39,7.3317]
[1720749266812,0.17,136.45,136.39,7.3317]
[1720749266990,0.34,136.45,136.39,7.3317]
[1720749267387,0.34,136.45,136.4,7.3313]
[1720749268086,0.34,136.45,136.39,7.3317]
[1720749268588,38.43343936,136.44,136.38,25.6621]
[1720749268788,22.09,136.44,136.38,25.6621]
[1720749269507,16.34331506,136.43,136.38,25.6621]
[1720749269802,22.09,136.42,136.38,18.3299]
[1720749270009,22.09,136.4,136.35,25.6681]
[1720749270207,0.17,136.39,136.35,25.6681]
[1720749270397,0.17,136.39,136.35,18.3341]
[1720749271510,0.17,136.39,136.35,25.6681]
[1720749272211,22.09,136.4,136.36,7.3333]
[1720749272415,26.8223,136.41,136.36,7.3333]
[1720749272596,0.17,136.4,136.36,7.3333]
[1720749273695,0.17,136.4,136.37,7.3327]
[1720749273901,0.17,136.4,136.36,7.3333]
[1720749275206,0.17,136.4,136.35,25.6679]
[1720749275599,0.17,136.4,136.34,7.3344]
[1720749276710,38.6992,136.39,136.33,7.335]
[1720749277311,0.34,136.38,136.33,7.335]
[1720749277699,0.34,136.38,136.34,7.3344]
[1720749279209,0.17,136.38,136.35,7.3339]
[1720749279410,0.17,136.38,136.34,25.6705]
[1720749279610,0.34,136.38,136.34,25.6705]
[1720749279823,0.17,136.38,136.35,7.334]
[1720749280117,16.6092,136.39,136.34,25.6705]
[1720749280321,0.17,136.38,136.34,25.6705]
[1720749280518,16.6092,136.39,136.34,25.6705]
[1720749280906,16.6092,136.39,136.35,7.334]
[1720749281615,16.6092,136.39,136.34,18.3361]
[1720749281917,0.17,136.38,136.34,18.3361]
[1720749282219,0.34,136.38,136.34,18.3361]
[1720749282523,0.34,136.38,136.32,7.3355]
[1720749283315,0.34,136.38,136.31,18.3396]
[1720749283519,22.09,136.37,136.31,18.3396]
[1720749283835,16.4712,136.35,136.31,18.3396]
[1720749285304,22.09,136.33,136.24,36.6987]
[1720749285505,49.3,136.32,136.25,7.3389]
[1720749285730,37.7362,136.31,136.26,7.3388]
[1720749286819,37.7362,136.31,136.27,7.3382]
[1720749287519,15.6462,136.31,136.28,7.3376]
[1720749289525,15.6462,136.31,136.28,18.3436]
[1720749289728,15.6462,136.31,136.28,25.681]
[1720749290648,15.6462,136.31,136.29,7.3372]
[1720749291141,15.6462,136.31,136.28,25.6812]
[1720749291428,0.17,136.3,136.25,25.6869]
[1720749291612,0.34,136.3,136.25,25.6869]
[1720749292616,15.6462,136.31,136.26,7.3388]
[1720749292936,15.6462,136.31,136.25,25.6866]
[1720749293915,0.17,136.3,136.25,18.3476]
[1720749294115,20.34,136.3,136.25,18.3476]
[1720749294417,48.7703,136.3,136.23,7.3404]
[1720749294619,56.1071,136.3,136.22,25.6927]
[1720749294933,56.1071,136.3,136.23,7.3404]
[1720749295239,26.6803,136.3,136.24,7.3398]
[1720749295449,26.6803,136.3,136.24,18.3494]
[1720749295622,26.6803,136.3,136.25,7.3389]
[1720749298741,26.3403,136.3,136.26,7.3388]
[1720749299040,6.3403,136.3,136.26,7.3388]
[1720749299635,6.3403,136.3,136.24,25.689]
[1720749300140,6.3403,136.3,136.25,7.3394]
[1720749300339,6.3403,136.3,136.24,25.6892]
[1720749300653,6.3403,136.3,136.25,7.3392]
[1720749301623,6.3403,136.3,136.26,7.3388]
[1720749301835,15.6462,136.31,136.23,20.0]
[1720749302033,15.6462,136.31,136.24,45.34]
[1720749302249,15.6462,136.31,136.24,45.0]
[1720749302453,15.6462,136.31,136.26,7.3388]
[1720749305050,15.6462,136.31,136.27,7.3383]
[1720749306166,15.6462,136.31,136.28,7.3377]
[1720749306526,15.6462,136.31,136.27,25.6839]
[1720749307835,15.6462,136.31,136.28,7.3376]
[1720749308041,15.6462,136.31,136.29,7.3372]
[1720749309756,15.6462,136.31,136.27,18.3456]
[1720749310260,15.6462,136.31,136.26,7.3387]
[1720749310769,15.6462,136.31,136.26,18.3465]
[1720749311551,0.17,136.3,136.26,18.3465]
[1720749311879,15.6462,136.31,136.26,18.3465]
[1720749312173,15.6462,136.31,136.27,7.3382]
[1720749314009,15.6462,136.31,136.28,7.3377]
[1720749316666,6.4972,136.34,136.29,18.3423]
[1720749317073,0.17,136.33,136.28,7.3377]
[1720749317368,0.34,136.33,136.28,7.3377]
[1720749318184,0.34,136.33,136.26,18.346]
[1720749318487,58.3862,136.31,136.24,7.3398]
[1720749319082,15.6793,136.28,136.21,7.3412]
[1720749319378,22.09,136.26,136.2,25.6963]
[1720749319591,0.34,136.25,136.2,18.3543]
[1720749320183,15.4763,136.23,136.2,18.3543]
[1720749320481,15.4763,136.23,136.18,7.3431]
[1720749320683,15.4763,136.23,136.19,7.3425]
[1720749320983,15.4763,136.23,136.2,7.3419]
[1720749321190,15.4763,136.23,136.22,7.341]
[1720749321361,16.2709,136.27,136.22,7.341]
[1720749321777,16.2709,136.27,136.23,7.3402]
[1720749321981,16.2709,136.27,136.24,7.3398]
[1720749322658,16.2709,136.27,136.23,25.6907]
[1720749323287,16.2709,136.27,136.2,0.81595371]
[1720749323288,16.2709,136.27,136.2,18.3544]
[1720749323477,16.2709,136.27,136.21,7.341]
[1720749323679,16.2709,136.27,136.22,7.3408]
[1720749323980,16.2709,136.27,136.23,0.70795372]
[1720749324288,16.2709,136.27,136.24,7.3399]
[1720749325191,16.2709,136.27,136.23,7.3401]
[1720749325367,16.2709,136.27,136.24,7.3398]
[1720749325685,16.2709,136.27,136.25,7.3393]
[1720749326061,6.3509,136.29,136.25,7.3393]
[1720749326504,15.9072,136.3,136.26,18.3468]
[1720749326686,15.9072,136.3,136.27,8.80539767]
[1720749327063,16.4139,136.33,136.26,18.3468]
[1720749327255,16.4139,136.33,136.29,7.3368]
[1720749327461,16.4139,136.33,136.29,1.46723916]
[1720749328469,16.4139,136.33,136.29,8.80433916]
[1720749329364,16.4139,136.33,136.29,7.3371]
[1720749329594,16.4139,136.33,136.28,18.3441]
[1720749329794,16.4139,136.33,136.3,18.3406]
[1720749329977,16.4139,136.33,136.31,7.3358]
[1720749330670,16.4139,136.33,136.3,25.6771]
[1720749330977,16.4139,136.33,136.27,18.3454]
[1720749331177,29.88441898,136.32,136.25,7.3394]
[1720749331382,49.3,136.32,136.25,7.3394]
[1720749331768,9.54502991,136.31,136.25,7.3394]
[1720749332084,20.17,136.3,136.25,7.3394]
[1720749332292,0.17,136.3,136.25,7.3394]
[1720749332480,20.17,136.31,136.25,7.3394]
[1720749337108,27.5064,136.31,136.24,25.689]
[1720749337286,0.17,136.3,136.24,25.689]
[1720749338500,0.17,136.3,136.25,7.3393]
[1720749338681,20.17,136.31,136.27,7.3383]
[1720749338889,0.17,136.31,136.26,25.6854]
[1720749339202,0.17,136.31,136.23,18.3503]
[1720749339385,0.34,136.31,136.23,18.3503]
[1720749339699,7.65637347,136.3,136.23,18.3503]
[1720749339873,0.34,136.31,136.23,18.3503]
[1720749340708,0.34,136.31,136.25,7.3392]
[1720749341207,67.43,136.31,136.25,7.3392]
[1720749341385,20.0,136.3,136.25,7.3392]
[1720749341579,0.17,136.29,136.24,7.3397]
[1720749342002,20.0,136.3,136.25,8.46245111]
[1720749342208,20.34,136.31,136.26,7.3387]
[1720749342386,7.65612732,136.32,136.27,7.3383]
[1720749342592,16.7539,136.33,136.27,8.46146764]
[1720749342793,0.34,136.32,136.27,8.46146764]
[1720749343211,0.34,136.32,136.26,1.1232585]
[1720749343506,20.34,136.32,136.25,26.90638826]
[1720749344028,27.6757,136.32,136.25,25.6873]
[1720749344179,9.54551107,136.31,136.25,25.6873]
[1720749344381,27.6757,136.32,136.25,18.3481]
[1720749344581,9.54558961,136.31,136.25,18.3481]
[1720749344806,27.6757,136.32,136.25,25.6875]
[1720749345015,9.54546272,136.31,136.25,25.6875]
[1720749345313,27.6757,136.32,136.25,25.6875]
[1720749345496,9.54543683,136.31,136.25,25.6875]
[1720749345702,20.34,136.32,136.25,18.3481]
[1720749346214,20.34,136.32,136.26,7.3387]
[1720749346387,20.34,136.32,136.25,25.6873]
[1720749346585,20.34,136.32,136.26,7.3388]
[1720749347321,20.34,136.32,136.25,25.6873]
[1720749347618,9.54546272,136.31,136.25,25.6873]
[1720749347784,27.6758,136.32,136.25,25.6873]
[1720749347987,9.54543683,136.31,136.25,25.6873]
[1720749348297,27.6758,136.32,136.25,25.6873]
[1720749348497,9.54561465,136.31,136.25,25.6873]
[1720749348691,27.6758,136.32,136.25,25.6873]
[1720749348891,9.5456155,136.31,136.25,25.6873]
[1720749349106,27.6758,136.32,136.25,25.6873]
[1720749349298,9.54543683,136.31,136.25,25.6873]
[1720749349482,27.6758,136.32,136.25,25.6873]
[1720749349683,9.54543768,136.31,136.25,25.6873]
[1720749349902,27.6758,136.32,136.25,25.6873]
[1720749350097,9.54543768,136.31,136.25,25.6873]
[1720749350403,27.6758,136.32,136.25,25.6873]
[1720749350600,9.54555163,136.31,136.26,7.3387]
[1720749350902,20.34,136.32,136.25,18.3481]
[1720749351410,20.17,136.32,136.27,7.338]
[1720749351902,20.17,136.32,136.25,18.3481]
[1720749352201,16.5839,136.33,136.28,7.3375]
[1720749352406,16.4139,136.33,136.29,7.3372]
[1720749352583,16.4139,136.33,136.28,7.3376]
[1720749353293,16.4139,136.33,136.26,7.3387]
[1720749353896,9.54492583,136.32,136.26,7.3387]
[1720749354206,16.4139,136.33,136.26,7.3387]
[1720749354411,9.54481173,136.32,136.26,7.3387]
[1720749354591,23.7493,136.33,136.26,7.3387]
[1720749354791,16.4139,136.33,136.27,7.3382]
[1720749354982,16.4139,136.33,136.28,7.3376]
[1720749355189,16.4139,136.33,136.27,7.3383]
[1720749357806,16.4139,136.33,136.28,7.3378]
[1720749358189,16.4139,136.33,136.29,7.3372]
[1720749358393,16.4139,136.33,136.29,8.35103534]
[1720749360014,16.4139,136.33,136.29,1.01383534]
[1720749361708,16.4139,136.33,136.3,0.44814277]
[1720749362726,16.4139,136.33,136.28,25.6821]
[1720749363225,16.4139,136.33,136.27,7.3382]
[1720749363714,16.4139,136.33,136.28,7.3377]
[1720749364117,16.4139,136.33,136.27,18.3457]
[1720749364118,16.4139,136.33,136.29,7.3371]
[1720749364624,16.4139,136.33,136.27,18.3457]
[1720749364625,16.4139,136.33,136.28,7.3376]
[1720749364799,16.4139,136.33,136.29,7.3372]
[1720749365302,16.4139,136.33,136.28,7.3376]
[1720749370521,16.4139,136.33,136.29,7.3372]
[1720749371027,30.9139,136.33,136.29,7.3372]
[1720749378326,16.4139,136.33,136.29,7.3372]
[1720749378528,7.65147567,136.37,136.36,7.3335]
[1720749378724,15.5313,136.4,136.37,7.3329]
[1720749379042,15.5313,136.4,136.37,8.79927203]
[1720749379636,15.5313,136.4,136.37,1.46637203]
[1720749385835,15.5313,136.4,136.37,8.79927203]
[1720749386335,15.5313,136.4,136.36,8.7997811]
[1720749388849,15.5313,136.4,136.37,7.3329]
[1720749393240,15.5313,136.4,136.36,7.3334]
[1720749393437,15.5313,136.4,136.36,8.79951292]
[1720749393935,15.5313,136.4,136.37,7.3329]
[1720749394441,15.5313,136.4,136.36,8.79941292]
[1720749394642,15.5313,136.4,136.36,7.3333]
[1720749394857,15.5313,136.4,136.37,7.3328]
[1720749396429,15.5313,136.4,136.37,18.3322]
[1720749396623,15.5313,136.4,136.37,25.6648]
[1720749402040,15.5313,136.4,136.37,27.13117643]
[1720749402440,15.1382,136.43,136.38,7.3322]
[1720749402738,14.48,136.42,136.38,7.3322]
[1720749404458,14.48,136.42,136.37,41.61137643]
[1720749405936,14.48,136.41,136.37,27.13137643]
[1720749406141,14.48,136.41,136.38,1.46626899]
[1720749409539,14.48,136.41,136.38,8.79856899]
[1720749410155,15.1382,136.43,136.39,7.3318]
[1720749410337,14.48,136.42,136.39,7.3318]
[1720749410738,14.48,136.41,136.39,7.3318]
[1720749410965,14.48,136.41,136.37,32.8122]
[1720749410966,14.48,136.41,136.38,7.3322]
[1720749411964,14.48,136.42,136.38,7.3322]
[1720749412258,14.48,136.42,136.39,7.3318]
[1720749423475,9.5411306,136.41,136.39,7.3318]
[1720749423681,14.48,136.42,136.39,7.3318]
[1720749423865,29.6182,136.43,136.39,7.3318]
[1720749424176,9.54116937,136.42,136.39,7.3318]
[1720749424377,9.54116937,136.41,136.39,7.3318]
[1720749424558,29.6182,136.43,136.39,7.3318]
[1720749424750,9.54116852,136.42,136.39,7.3318]
[1720749424956,9.54116852,136.41,136.39,7.3318]
[1720749425152,29.6182,136.43,136.39,7.3318]
[1720749425377,9.54111682,136.42,136.39,7.3318]
[1720749425576,13.86510791,136.45,136.4,14.86531629]
[1720749425577,7.64970791,136.45,136.4,14.86531629]
[1720749425877,9.54097247,136.44,136.41,21.8104]
[1720749426077,14.48,136.46,136.41,21.8104]
[1720749426377,11.3110048,136.45,136.41,21.8104]
[1720749426560,14.48,136.45,136.41,7.3304]
[1720749426759,15.2543,136.47,136.42,7.3302]
[1720749426963,11.31107933,136.46,136.42,7.3302]
[1720749427180,14.48,136.46,136.42,7.3302]
[1720749427867,14.48,136.46,136.43,0.90268054]
[1720749428664,7.64774078,136.49,136.44,32.8025]
[1720749428866,14.48,136.49,136.45,15.54438301]
[1720749429067,14.48,136.49,136.45,1.06438301]
[1720749429481,14.48,136.49,136.45,8.39258301]
[1720749430972,16.1296,136.5,136.45,8.39258301]
[1720749431284,14.48,136.49,136.45,8.39258301]
[1720749431469,14.48,136.49,136.45,22.87258301]
[1720749432480,23.74135574,136.52,136.46,19.38400534]
[1720749432680,14.48,136.51,136.46,33.86400534]
[1720749432854,14.48,136.51,136.46,32.7997]
[1720749433057,14.48,136.51,136.47,7.3272]
[1720749433260,23.20814834,136.54,136.48,7.327]
[1720749433487,14.48,136.52,136.48,18.3174]
[1720749434470,14.48,136.52,136.49,7.3264]
[1720749434795,23.20814834,136.54,136.5,7.3258]
[1720749435085,14.48,136.53,136.49,7.3263]
[1720749438282,37.91616551,136.56,136.49,7.3263]
[1720749438485,14.48,136.53,136.49,7.3263]
[1720749438965,42.43,136.55,136.49,7.3263]
[1720749439280,20.34,136.55,136.5,18.3144]
[1720749439487,20.17,136.55,136.5,18.3144]
[1720749439667,8.50326551,136.56,136.52,18.3119]
[1720749439868,15.3344264,136.56,136.52,18.3119]
[1720749440484,15.3344264,136.56,136.53,7.3242]
[1720749440866,7.3248,136.53,136.46,16.2481]
[1720749441065,14.48,136.51,136.46,24.5677]
[1720749441268,14.48,136.49,136.46,18.3196]
[1720749441567,14.48,136.49,136.46,25.6476]
[1720749441878,14.48,136.5,136.46,25.6476]
[1720749442266,38.6501,136.52,136.46,18.3196]
[1720749442467,14.48,136.47,136.43,18.3235]
[1720749442667,29.3568,136.49,136.42,13.578]
[1720749442886,14.48,136.5,136.41,7.3307]
[1720749442887,14.48,136.44,136.41,7.3307]
[1720749443394,14.48,136.44,136.4,25.6591]
[1720749443975,14.48,136.44,136.41,7.3308]
[1720749444993,14.48,136.45,136.42,18.3251]
[1720749445292,14.48,136.47,136.45,7.3285]
[1720749445464,14.48,136.48,136.45,7.3285]
[1720749445665,0.17,136.51,136.46,7.328]
[1720749445869,14.48,136.49,136.47,7.3275]
[1720749446082,14.48,136.5,136.47,7.3275]
[1720749446488,14.48,136.5,136.46,7.3281]
[1720749446789,14.48,136.5,136.45,14.48]
[1720749446790,14.48,136.49,136.45,7.3285]
[1720749447087,14.48,136.47,136.44,25.6517]
[1720749447796,14.48,136.48,136.45,7.3286]
[1720749448188,14.48,136.48,136.46,7.3279]
[1720749448487,16.6201,136.52,136.47,7.3275]
[1720749448693,14.48,136.5,136.47,7.3275]
[1720749448881,14.48,136.51,136.47,7.3275]
[1720749449891,14.48,136.5,136.47,7.3275]
[1720749450186,14.48,136.5,136.46,25.648]
[1720749450390,14.48,136.49,136.46,18.32]
[1720749450585,16.6201,136.52,136.46,18.32]
[1720749450792,7.65354592,136.53,136.48,18.3173]
[1720749450992,15.5848,136.55,136.48,32.7973]
[1720749451290,15.5848,136.55,136.51,7.3253]
[1720749451496,14.48,136.54,136.51,7.3253]
[1720749451674,14.48,136.54,136.5,25.6403]
[1720749452272,14.48,136.54,136.51,7.3254]
[1720749452586,14.48,136.54,136.5,18.3145]
[1720749453291,14.48,136.53,136.5,18.3145]
[1720749453606,14.48,136.54,136.5,18.3145]
[1720749454305,0.8544264,136.56,136.51,7.3251]
[1720749454482,14.48,136.55,136.51,7.3251]
[1720749454914,14.48,136.54,136.51,7.3251]
[1720749458999,0.8544264,136.56,136.53,7.3243]
[1720749459185,0.8544264,136.56,136.53,7.3242]
[1720749459779,15.3344264,136.56,136.53,7.3242]
[1720749459980,15.3344264,136.56,136.52,27.10136279]
[1720749460985,15.3344264,136.56,136.53,7.3243]
[1720749461390,15.3344264,136.56,136.52,19.77666279]
[1720749461391,15.3344264,136.56,136.54,7.3237]
[1720749461605,15.3344264,136.56,136.52,19.77666279]
[1720749462491,15.3344264,136.56,136.53,7.3242]
[1720749462901,0.8544264,136.56,136.52,18.3119]
[1720749463087,14.48,136.55,136.52,18.3119]
[1720749463415,0.8544264,136.56,136.49,18.3156]
[1720749463590,14.48,136.52,136.49,25.6417]
[1720749463910,28.1774264,136.56,136.52,7.3245]
[1720749463911,0.8544264,136.56,136.52,7.3245]
[1720749464115,14.48,136.55,136.52,7.3245]
[1720749464292,0.8544264,136.56,136.53,18.3105]
[1720749464511,15.3344264,136.56,136.53,25.6345]
[1720749464884,0.8544264,136.56,136.53,18.3105]
[1720749465084,0.8544264,136.56,136.55,7.3233]
[1720749465406,0.8544264,136.56,136.53,18.3105]
[1720749465592,15.3344264,136.56,136.53,18.3105]
[1720749466400,15.3344264,136.56,136.53,25.6348]
[1720749467091,0.8544264,136.56,136.54,7.3236]